[Event "26th OIBM 2023"]
[Site "Gmund am Tegernsee"]
[Date "2023.11.02"]
[Round "6.15"]
[White "Zieger, Bernd"]
[Black "Morawietz, Dieter"]
[Result "0-1"]
[ECO "B83"]
[WhiteElo "1873"]
[BlackElo "2378"]
[Annotator "ChessBase"]
[PlyCount "50"]
[EventDate "2023.10.04"]
[EventType "swiss"]
[EventCountry "GER"]
[SourceTitle "playchess.com"]
[Source "ChessBase"]
[SourceQuality "1"]
[TimeControl "40/5400+30:1800+30"]

1. e4 {[%emt 0:00:02]} c5 {[%emt 0:00:11]} 2. Nf3 {[%emt 0:00:10]} e6 {[%emt 0:00:12]} 3. d4 {[%emt 0:00:12]} cxd4 {[%emt 0:00:19]} 4. Nxd4 {[%emt 0:00:06]} Nc6 {[%emt 0:00:20]} 5. Nc3 {[%emt 0:03:24]} d6 {[%emt 0:00:11]} 6. Be3 {[%emt 0:01:45]} Nf6 {[%emt 0:00:35]} 7. Be2 {[%emt 0:00:27]} Be7 {[%emt 0:00:09]} 8. O-O {[%emt 0:03:27]} O-O {[%emt 0:00:09]} 9. Bf3 {[%emt 0:07:02]} Bd7 {[%emt 0:04:54]} 10. Re1 {[%emt 0:01:19]} a6 {[%emt 0:02:40]} 11. a4 {[%emt 0:01:54]} Ne5 {[%emt 0:06:28]} 12. Be2 {[%emt 0:04:00]} Qc7 {[%emt 0:03:11]} 13. f4 {[%emt 0:04:39]} Nc4 {[%emt 0:02:17]} 14. Bxc4 {[%emt 0:06:19]} Qxc4 {[%emt 0:00:05]} 15. e5 {[%emt 0:06:15]} dxe5 {[%emt 0:07:56]} 16. fxe5 {[%emt 0:00:08]} Nd5 {[%emt 0:00:11]} 17. Nxd5 {[%emt 0:05:27]} Qxd5 {[%emt 0:00:10]} 18. Nf3 {[%emt 0:00:49]} Bc6 {[%emt 0:05:02]} 19. Qd4 {[%emt 0:14:30]} Rac8 {[%emt 0:11:31]} 20. c4 {[%emt 0:15:27]} Qa5 {[%emt 0:01:08]} 21. Nd2 {[%emt 0:06:49]} Rfd8 {[%emt 0:24:39]} 22. Qf4 {[%emt 0:00:28]} Qb4 {[%emt 0:00:32]} 23. b3 {[%emt 0:06:07]} Rd3 {[%emt 0:03:05]} 24. Re2 {[%emt 0:02:05]} Rxe3 {[%emt 0:00:28]} 25. Rxe3 {[%emt 0:01:33]} Qxd2 {[%emt 0:00:08]} 0-1

[Event "26th OIBM 2023"]
[Site "Gmund am Tegernsee"]
[Date "2023.11.02"]
[Round "6.16"]
[White "Hess, Max"]
[Black "Kraus, Sebastian"]
[Result "1-0"]
[ECO "A13"]
[WhiteElo "2378"]
[BlackElo "1904"]
[Annotator "ChessBase"]
[PlyCount "61"]
[EventDate "2023.10.04"]
[EventType "swiss"]
[EventCountry "GER"]
[SourceTitle "playchess.com"]
[Source "ChessBase"]
[SourceQuality "1"]
[TimeControl "40/5400+30:1800+30"]

1. c4 {[%emt 0:00:05]} e6 {[%emt 0:00:29]} 2. g3 {[%emt 0:00:08]} d5 {[%emt 0:00:17]} 3. Bg2 {[%emt 0:00:06]} Nf6 {[%emt 0:00:23]} 4. Nf3 {[%emt 0:00:12]} dxc4 {[%emt 0:00:29]} 5. Qa4+ {[%emt 0:00:14]} Bd7 {[%emt 0:00:18]} 6. Qxc4 {[%emt 0:00:04]} c5 {[%emt 0:00:42]} 7. Ne5 {[%emt 0:00:15]} Qc8 {[%emt 0:00:38]} 8. Qd3 {[%emt 0:00:09]} Nc6 {[%emt 0:01:14]} 9. Nxd7 {[%emt 0:00:06]} Nxd7 {[%emt 0:00:50]} 10. b3 {[%emt 0:00:13]} Be7 {[%emt 0:01:48]} 11. Bb2 {[%emt 0:00:05]} O-O {[%emt 0:05:11]} 12. Nc3 {[%emt 0:00:05]} Rd8 {[%emt 0:01:40]} 13. Rc1 {[%emt 0:00:09]} Nf6 {[%emt 0:00:55]} 14. Qb1 {[%emt 0:00:05]} Qd7 {[%emt 0:01:14]} 15. d3 {[%emt 0:00:07]} Rac8 {[%emt 0:00:58]} 16. O-O {[%emt 0:00:06]} h5 {[%emt 0:02:23]} 17. Rfd1 {[%emt 0:06:06]} h4 {[%emt 0:03:53]} 18. e3 {[%emt 0:00:34]} hxg3 {[%emt 0:01:32]} 19. hxg3 {[%emt 0:02:26]} b6 {[%emt 0:25:31]} 20. Ne4 {[%emt 0:12:39]} e5 {[%emt 0:03:10]} 21. Nxf6+ {[%emt 0:03:49]} Bxf6 {[%emt 0:00:30]} 22. a3 {[%emt 0:01:57]} Qe6 {[%emt 0:02:15]} 23. Bc3 {[%emt 0:09:27]} Rd6 {[%emt 0:04:11]} 24. b4 {[%emt 0:04:03]} cxb4 {[%emt 0:00:52]} 25. axb4 {[%emt 0:00:28]} b5 {[%emt 0:02:05]} 26. Be4 {[%emt 0:12:40]} Bg5 {[%emt 0:06:09]} 27. d4 {[%emt 0:16:46]} Qh6 {[%emt 0:06:00]} 28. dxe5 {[%emt 0:08:54]} Rxd1+ {[%emt 0:00:42]} 29. Rxd1 {[%emt 0:00:05]} Bxe3 {[%emt 0:00:22]} 30. Kg2 {[%emt 0:04:01]} Bb6 {[%emt 0:03:32]} 31. Rd6 {[%emt 0:01:29]} 1-0

[Event "26th OIBM 2023"]
[Site "Gmund am Tegernsee"]
[Date "2023.11.02"]
[Round "6.17"]
[White "Shen, Tingrui"]
[Black "Besou, Hussain"]
[Result "0-1"]
[ECO "B51"]
[WhiteElo "1740"]
[BlackElo "2351"]
[Annotator "ChessBase"]
[PlyCount "82"]
[EventDate "2023.10.04"]
[EventType "swiss"]
[EventCountry "GER"]
[SourceTitle "playchess.com"]
[Source "ChessBase"]
[SourceQuality "1"]
[TimeControl "40/5400+30:1800+30"]

1. e4 {[%emt 0:00:10]} c5 {[%emt 0:00:06]} 2. Nf3 {[%emt 0:00:18]} d6 {[%emt 0:00:05]} 3. Bb5+ {[%emt 0:00:16]} Nd7 {[%emt 0:00:09]} 4. a4 {[%emt 0:00:37]} Ngf6 {[%emt 0:00:38]} 5. Nc3 {[%emt 0:00:25]} g6 {[%emt 0:00:17]} 6. O-O {[%emt 0:01:01]} Bg7 {[%emt 0:00:09]} 7. d4 {[%emt 0:01:39]} cxd4 {[%emt 0:00:22]} 8. Nxd4 {[%emt 0:00:58]} O-O {[%emt 0:00:44]} 9. Be3 {[%emt 0:00:45]} Nc5 {[%emt 0:04:27]} 10. f3 {[%emt 0:00:54]} a6 {[%emt 0:13:02]} 11. Bc4 {[%emt 0:06:59]} Bd7 {[%emt 0:05:37]} 12. Nb3 {[%emt 0:04:51]} Nxb3 {[%emt 0:13:05]} 13. Bxb3 {[%emt 0:01:36]} b5 {[%emt 0:02:03]} 14. Qe2 {[%emt 0:04:47]} Rb8 {[%emt 0:04:23]} 15. Bd4 {[%emt 0:09:23]} b4 {[%emt 0:06:58]} 16. Nd5 {[%emt 0:02:02]} Nxd5 {[%emt 0:00:17]} 17. Bxg7 {[%emt 0:00:30]} Nf4 {[%emt 0:00:21]} 18. Qd2 {[%emt 0:01:11]} Nh3+ {[%emt 0:00:12]} 19. gxh3 {[%emt 0:00:18]} Kxg7 {[%emt 0:00:05]} 20. h4 {[%emt 0:00:53]} Qa5 {[%emt 0:05:00]} 21. Qd4+ {[%emt 0:02:48]} f6 {[%emt 0:00:30]} 22. Qa7 {[%emt 0:01:59]} Qb6+ {[%emt 0:00:42]} 23. Qxb6 {[%emt 0:00:21]} Rxb6 {[%emt 0:00:04]} 24. Bc4 {[%emt 0:03:37]} a5 {[%emt 0:06:19]} 25. Rfd1 {[%emt 0:02:09]} Bc6 {[%emt 0:01:22]} 26. Kf2 {[%emt 0:01:39]} Kh6 {[%emt 0:02:42]} 27. Kg3 {[%emt 0:03:20]} Rc8 {[%emt 0:01:50]} 28. b3 {[%emt 0:02:13]} Bb7 {[%emt 0:00:25]} 29. Rac1 {[%emt 0:01:35]} Rc5 {[%emt 0:01:49]} 30. Rd2 {[%emt 0:01:26]} Ba6 {[%emt 0:02:54]} 31. Bd5 {[%emt 0:00:18]} Rb8 {[%emt 0:00:42]} 32. Be6 {[%emt 0:02:13]} Rb7 {[%emt 0:01:22]} 33. Rcd1 {[%emt 0:03:45]} Rbc7 {[%emt 0:00:37]} 34. Rd5 {[%emt 0:01:09]} Rxc2 {[%emt 0:01:06]} 35. Rxa5 {[%emt 0:00:35]} Be2 {[%emt 0:00:06]} 36. Rd4 {[%emt 0:01:00]} R7c3 {[%emt 0:00:06]} 37. Rxb4 {[%emt 0:03:13]} Rxf3+ {[%emt 0:03:13]} 38. Kg2 {[%emt 0:00:30]} Bd1+ {[%emt 0:00:52]} 39. Kg1 {[%emt 0:00:22]} Re3 {[%emt 0:00:06]} 40. Kf1 {[%emt 0:00:46]} Bf3 {[%emt 0:00:28]} 41. Bh3 {[%emt 0:31:55]} Be2+ {[%emt 0:30:30]} 0-1

[Event "26th OIBM 2023"]
[Site "Gmund am Tegernsee"]
[Date "2023.11.02"]
[Round "6.18"]
[White "Lagarde, Maxime"]
[Black "Eichler, Alexander"]
[Result "1-0"]
[ECO "D04"]
[WhiteElo "2626"]
[BlackElo "1860"]
[Annotator "TA"]
[PlyCount "77"]
[EventDate "2023.10.04"]
[EventType "swiss"]
[EventCountry "GER"]
[SourceTitle "playchess.com"]
[Source "ChessBase"]
[SourceQuality "1"]
[TimeControl "40/5400+30:1800+30"]

{[%evp 11,77,6,11,20,25,22,26,24,25,24,38,33,54,38,42,33,46,37,45,25,46,38,41,45,45,50,87,49,93,80,93,97,116,60,67,51,68,69,63,21,30,0,0,0,47,0,75,35,53,34,48,57,56,33,162,138,161,162,149,160,649,152,274,255,247,214,1921,1194]} 1. d4 {[%emt 0:00:03]} Nf6 {[%emt 0:00:04]} 2. Nf3 {[%emt 0:00:03]} g6 {[%emt 0:00:06]} 3. Nbd2 {[%emt 0:00:04]} d5 {[%emt 0:00:15]} 4. b3 {[%emt 0:00:04]} Bg7 {[%emt 0:00:18]} 5. Bb2 {[%emt 0:00:04]} O-O {[%emt 0:00:28]} 6. e3 {[%emt 0:00:04]} Bf5 {[%emt 0:03:53]} 7. Be2 {[%emt 0:00:05] D04: Colle System.} Nbd7 {[%emt 0:00:43][%cal Bb8d7,Bd7f6,Bf6e4][%mdl 32]} 8. c4 {[%emt 0:03:36]} c6 {[%emt 0:01:01]} 9. O-O {[%emt 0:12:53] White has an edge.} Ne4 {[%emt 0:10:51]} 10. Nxe4 {[%emt 0:03:29]} Bxe4 {[%emt 0:00:42]} 11. Ng5 {[%emt 0:00:58]} Nf6 {[%emt 0:15:43]} 12. Nxe4 {[%emt 0:03:40]} Nxe4 {[%emt 0:00:09] [#]} 13. Bd3 $146 {[%emt 0:00:19]} ({Predecessor:} 13. Qc2 Qd7 14. a4 a5 15. cxd5 cxd5 16. Bb5 Rfc8 17. Qxe4 Qxb5 18. axb5 dxe4 19. Rfc1 {½-½ Rapport,R (2444)-Prohaszka,P (2501) Szentgotthard GM 2010 (5)}) 13... f5 {[%emt 0:04:18]} 14. Qe2 {[%emt 0:00:50]} e6 {[%emt 0:06:22]} 15. b4 {[%emt 0:01:58]} Qh4 {[%emt 0:03:59]} 16. f3 {[%emt 0:01:01]} Nd6 {[%emt 0:06:03]} 17. c5 {[%emt 0:00:58]} Ne8 {[%emt 0:01:18]} 18. a4 {[%emt 0:06:29]} e5 {[%emt 0:08:15]} 19. e4 {[%emt 0:02:50]} exd4 {[%emt 0:12:08] [#]} 20. exd5 $1 {[%emt 0:00:27]} cxd5 {[%emt 0:00:20]} 21. Qe6+ {[%emt 0:00:36]} Kh8 {[%emt 0:00:07]} 22. Rae1 {[%emt 0:00:52]} (22. Qxd5 $16 Rd8 23. Qc4 (23. Qxb7 Be5 $11)) 22... Nc7 $14 {[%emt 0:03:56]} 23. Qe7 {[%emt 0:04:45]} Qxe7 {[%emt 0:00:21]} 24. Rxe7 {[%emt 0:00:06]} Rac8 {[%emt 0:01:47]} 25. Rfe1 {[%emt 0:00:13][%mdl 1024] Hoping for Rd7. White has compensation. White has more active pieces.} (25. g4 $5 {[%cal Rg4f5]}) 25... Bf6 {[%emt 0:01:21]} 26. Rd7 {[%emt 0:00:09] aiming for b5.} Kg8 {[%emt 0:02:51]} 27. Rc1 {[%emt 0:08:15]} Rfe8 {[%emt 0:04:25]} (27... Rf7 $11 28. c6 Rb8) 28. c6 {[%emt 0:01:14]} (28. Kf1 $14) 28... b6 {[%emt 0:00:08]} (28... bxc6 $11 29. Rxc6 Ne6 30. Rxc8 Rxc8) 29. b5 $36 {[%emt 0:02:38][%mdl 2048] Black is under pressure.} (29. Kf1 $5 {[%cal Rb4b5]}) 29... Re3 {[%emt 0:08:10]} 30. Rd1 {[%emt 0:00:34]} (30. Bc2 $5 {[%cal Rg1f1]}) 30... Re7 $1 {[%emt 0:00:31]} 31. Rxe7 {[%emt 0:01:52]} Bxe7 {[%emt 0:00:04]} 32. Bxd4 {[%emt 0:00:07][%cal Oa4a5] a5! would be deadly.} Kf7 {[%emt 0:01:28] [#] This costs Black the game.} (32... Bc5 $14 33. Bf2 Kf7) 33. a5 $1 $18 {[%emt 0:04:57][%cal Ba4a5,Ba5b6,Bb6b7][%mdl 544]} Bc5 {[%emt 0:01:48]} (33... Bf6 34. Bf2) 34. Bxc5 {[%emt 0:01:16]} bxc5 {[%emt 0:00:01]} 35. b6 {[%emt 0:00:17]} c4 $2 {[%emt 0:01:07]} (35... axb6 $16 36. axb6 Ke6) 36. Bc2 $2 {[%emt 0:08:49]} (36. Bxc4 $18 {is more deadly.} axb6 37. axb6 dxc4 38. Rd7+ (38. bxc7 Rxc7 39. Rd6 Ke7 $17) 38... Kf6 39. b7 {[%mdl 64] Deflection} (39. Rxc7 c3 $11)) 36... Na6 {[%emt 0:01:05] [#]} (36... axb6 $16 37. axb6 Ke6) 37. Ba4 $1 {[%emt 0:03:59]} ({Not} 37. Rxd5 axb6 38. axb6 Rxc6 $14) ({Inferior is} 37. bxa7 Ke6 $11) 37... axb6 {[%emt 0:01:37]} 38. axb6 {[%emt 0:00:04]} Nc5 {[%emt 0:00:58]} (38... Ke6 39. Bb5 Nc7) 39. b7 {[%emt 0:01:07] Weighted Error Value: White=0.33/Black=0.35} 1-0

[Event "26th OIBM 2023"]
[Site "Gmund am Tegernsee"]
[Date "2023.11.02"]
[Round "6.19"]
[White "Ghazarian, Kirk"]
[Black "Koehler, Christian Friedrich"]
[Result "1-0"]
[ECO "B10"]
[WhiteElo "2473"]
[BlackElo "2181"]
[Annotator "ChessBase"]
[PlyCount "59"]
[EventDate "2023.10.04"]
[EventType "swiss"]
[EventCountry "GER"]
[SourceTitle "playchess.com"]
[Source "ChessBase"]
[SourceQuality "1"]
[TimeControl "40/5400+30:1800+30"]

1. c4 {[%emt 0:00:21]} c6 {[%emt 0:00:07]} 2. e4 {[%emt 0:00:04]} d5 {[%emt 0:00:39]} 3. exd5 {[%emt 0:00:05]} cxd5 {[%emt 0:00:07]} 4. cxd5 {[%emt 0:00:05]} Nf6 {[%emt 0:01:02]} 5. Bb5+ {[%emt 0:00:11]} Nbd7 {[%emt 0:00:45]} 6. Nf3 {[%emt 0:00:38]} a6 {[%emt 0:00:51]} 7. Ba4 {[%emt 0:00:05]} Nxd5 {[%emt 0:05:45]} 8. Nc3 {[%emt 0:00:18]} N5b6 {[%emt 0:04:00]} 9. Bc2 {[%emt 0:01:34]} Nf6 {[%emt 0:03:19]} 10. h3 {[%emt 0:02:42]} e6 {[%emt 0:02:14]} 11. d4 {[%emt 0:00:54]} Be7 {[%emt 0:00:08]} 12. O-O {[%emt 0:00:43]} O-O {[%emt 0:00:42]} 13. Qd3 {[%emt 0:02:40]} Bd7 {[%emt 0:03:05]} 14. Bg5 {[%emt 0:01:29]} g6 {[%emt 0:01:10]} 15. Bh6 {[%emt 0:01:41]} Re8 {[%emt 0:00:03]} 16. Ne5 {[%emt 0:00:34]} Rc8 {[%emt 1:14:33]} 17. Rac1 {[%emt 0:10:35]} Bc6 {[%emt 0:00:00]} 18. Bb3 {[%emt 0:03:56]} Bd5 {[%emt 0:00:00]} 19. Nxd5 {[%emt 0:00:28]} Nbxd5 {[%emt 0:00:00]} 20. Qf3 {[%emt 0:09:53]} Rxc1 {[%emt 0:00:00]} 21. Rxc1 {[%emt 0:00:10]} Bf8 {[%emt 0:00:00]} 22. Bg5 {[%emt 0:01:06]} h6 {[%emt 0:00:00]} 23. Bxf6 {[%emt 0:00:44]} Nxf6 {[%emt 0:00:00]} 24. Qxb7 {[%emt 0:00:27]} Re7 {[%emt 0:00:00]} 25. Qxa6 {[%emt 0:02:46]} Rc7 {[%emt 0:00:00]} 26. Rxc7 {[%emt 0:01:04]} Qxc7 {[%emt 0:00:00]} 27. Qc4 {[%emt 0:00:20]} Qa5 {[%emt 0:00:00]} 28. Qc3 {[%emt 0:00:54]} Bb4 {[%emt 0:00:00]} 29. Qc8+ {[%emt 0:00:40]} Bf8 {[%emt 0:00:00]} 30. Qb7 {[%emt 0:01:00]} 1-0

[Event "26th OIBM 2023"]
[Site "Gmund am Tegernsee"]
[Date "2023.11.02"]
[Round "6.20"]
[White "Tonndorf, Matthias"]
[Black "Kargin, Arseny"]
[Result "0-1"]
[ECO "B76"]
[WhiteElo "2206"]
[BlackElo "2391"]
[Annotator "ChessBase"]
[PlyCount "66"]
[EventDate "2023.10.04"]
[EventType "swiss"]
[EventCountry "GER"]
[SourceTitle "playchess.com"]
[Source "ChessBase"]
[SourceQuality "1"]
[TimeControl "40/5400+30:1800+30"]

1. e4 {[%emt 0:00:03]} c5 {[%emt 0:00:05]} 2. Nf3 {[%emt 0:00:13]} d6 {[%emt 0:00:04]} 3. d4 {[%emt 0:00:23]} cxd4 {[%emt 0:00:06]} 4. Nxd4 {[%emt 0:00:05]} Nf6 {[%emt 0:00:05]} 5. Nc3 {[%emt 0:00:12]} g6 {[%emt 0:00:24]} 6. Be3 {[%emt 0:00:14]} Bg7 {[%emt 0:00:06]} 7. f3 {[%emt 0:00:10]} Nc6 {[%emt 0:00:05]} 8. Qd2 {[%emt 0:00:36]} O-O {[%emt 0:00:36]} 9. O-O-O {[%emt 0:00:26]} d5 {[%emt 0:00:19]} 10. exd5 {[%emt 0:00:19]} Nxd5 {[%emt 0:00:05]} 11. Nxc6 {[%emt 0:00:10]} bxc6 {[%emt 0:00:05]} 12. Bd4 {[%emt 0:00:12]} Bxd4 {[%emt 0:00:19]} 13. Qxd4 {[%emt 0:00:14]} Qb6 {[%emt 0:00:06]} 14. Na4 {[%emt 0:00:20]} Qc7 {[%emt 0:01:23]} 15. Bc4 {[%emt 0:00:27]} Rd8 {[%emt 0:00:12]} 16. g3 {[%emt 0:01:25]} Bh3 {[%emt 0:00:32]} 17. Qh4 {[%emt 0:07:57]} Bf5 {[%emt 0:07:06]} 18. Rhe1 {[%emt 0:03:05]} Rab8 {[%emt 0:16:11]} 19. Bb3 {[%emt 0:07:46]} Qa5 {[%emt 0:08:43]} 20. Re5 {[%emt 0:11:35]} Ne3 {[%emt 0:09:15]} 21. Bxf7+ {[%emt 0:10:04]} Kh8 {[%emt 0:05:50]} 22. Bd5 {[%emt 0:00:50]} Rxd5 {[%emt 0:04:26]} 23. Rexd5 {[%emt 0:04:07]} Nxd5 {[%emt 0:00:28]} 24. Qd4+ {[%emt 0:01:06]} Kg8 {[%emt 0:00:56]} 25. g4 {[%emt 0:02:57]} Rb4 {[%emt 0:03:05]} 26. Qe5 {[%emt 0:01:21]} Rxa4 {[%emt 0:03:03]} 27. gxf5 {[%emt 0:11:29]} Rxa2 {[%emt 0:00:33]} 28. Qe6+ {[%emt 0:01:10]} Kf8 {[%emt 0:00:26]} 29. Qc8+ {[%emt 0:01:33]} Kg7 {[%emt 0:00:08]} 30. c3 {[%emt 0:03:03]} Ra1+ {[%emt 0:03:20]} 31. Kd2 {[%emt 0:02:37]} Rxd1+ {[%emt 0:01:17]} 32. Kxd1 {[%emt 0:00:06]} Qa4+ {[%emt 0:00:25]} 33. Kc1 {[%emt 0:01:57]} Qf4+ {[%emt 0:00:18]} 0-1

[Event "26th OIBM 2023"]
[Site "Gmund am Tegernsee"]
[Date "2023.11.02"]
[Round "6.21"]
[White "Meissner, Felix"]
[Black "Schaffarczyk, Andre"]
[Result "1/2-1/2"]
[ECO "B23"]
[WhiteElo "2382"]
[BlackElo "2118"]
[Annotator "ChessBase"]
[PlyCount "79"]
[EventDate "2023.10.04"]
[EventType "swiss"]
[EventCountry "GER"]
[SourceTitle "playchess.com"]
[Source "ChessBase"]
[SourceQuality "1"]
[TimeControl "40/5400+30:1800+30"]

1. e4 {[%emt 0:00:03]} c5 {[%emt 0:00:13]} 2. Nc3 {[%emt 0:00:07]} Nc6 {[%emt 0:00:11]} 3. Bb5 {[%emt 0:00:07]} Nd4 {[%emt 0:00:35]} 4. Nf3 {[%emt 0:00:08]} a6 {[%emt 0:03:07]} 5. Bd3 {[%emt 0:00:13]} e6 {[%emt 0:05:16]} 6. Nxd4 {[%emt 0:00:41]} cxd4 {[%emt 0:00:07]} 7. Ne2 {[%emt 0:00:17]} e5 {[%emt 0:02:35]} 8. c3 {[%emt 0:02:44]} dxc3 {[%emt 0:02:29]} 9. Nxc3 {[%emt 0:03:03]} Nf6 {[%emt 0:03:03]} 10. Qb3 {[%emt 0:02:13]} Bc5 {[%emt 0:10:02]} 11. Bc4 {[%emt 0:04:28]} O-O {[%emt 0:01:55]} 12. O-O {[%emt 0:01:18]} d6 {[%emt 0:02:54]} 13. d3 {[%emt 0:05:06]} b5 {[%emt 0:12:13]} 14. Bd5 {[%emt 0:00:43]} Nxd5 {[%emt 0:00:28]} 15. Nxd5 {[%emt 0:00:40]} Be6 {[%emt 0:00:40]} 16. Be3 {[%emt 0:01:13]} Qd7 {[%emt 0:08:38]} 17. Rad1 {[%emt 0:07:50]} Qa7 {[%emt 0:07:39]} 18. Rfe1 {[%emt 0:04:12]} Rfc8 {[%emt 0:04:06]} 19. h3 {[%emt 0:04:03]} Rab8 {[%emt 0:06:03]} 20. Rd2 {[%emt 0:04:35]} a5 {[%emt 0:03:14]} 21. a3 {[%emt 0:05:39]} a4 {[%emt 0:01:20]} 22. Qd1 {[%emt 0:01:23]} Bxd5 {[%emt 0:03:04]} 23. exd5 {[%emt 0:00:09]} Bxe3 {[%emt 0:03:29]} 24. fxe3 {[%emt 0:01:08]} h6 {[%emt 0:03:56]} 25. d4 {[%emt 0:02:07]} Re8 {[%emt 0:02:59]} 26. dxe5 {[%emt 0:02:49]} Rxe5 {[%emt 0:00:12]} 27. Rd4 {[%emt 0:00:15]} Rc8 {[%emt 0:06:02]} 28. Qd3 {[%emt 0:01:23]} Rc5 {[%emt 0:00:46]} 29. Kh2 {[%emt 0:02:03]} Qb7 {[%emt 0:00:17]} 30. e4 {[%emt 0:10:51]} Qe7 {[%emt 0:01:54]} 31. Rf1 {[%emt 0:00:40]} Rg5 {[%emt 0:02:23]} 32. Rb4 {[%emt 0:02:44]} Qe5+ {[%emt 0:01:29]} 33. Kh1 {[%emt 0:00:09]} Qg3 {[%emt 0:01:13]} 34. Qe2 {[%emt 0:03:31]} Re5 {[%emt 0:02:03]} 35. Rxb5 {[%emt 0:08:31]} Rxb5 36. Qxb5 {[%emt 0:00:01]} Rxe4 {[%emt 0:00:45]} 37. Qd7 {[%emt 0:00:37]} f6 {[%emt 0:00:58]} 38. Qc8+ {[%emt 0:03:33]} Kf7 {[%emt 0:00:19]} 39. Qd7+ {[%emt 0:00:52]} Kg8 {[%emt 0:00:10]} 40. Qc8+ {[%emt 0:00:13]} 1/2-1/2

[Event "26th OIBM 2023"]
[Site "Gmund am Tegernsee"]
[Date "2023.11.02"]
[Round "6.22"]
[White "Manish Anto Cristiano F"]
[Black "Mohylnyi, Stepan"]
[Result "1-0"]
[ECO "D75"]
[WhiteElo "2368"]
[BlackElo "2120"]
[Annotator "ChessBase"]
[PlyCount "113"]
[EventDate "2023.10.04"]
[EventType "swiss"]
[EventCountry "GER"]
[SourceTitle "playchess.com"]
[Source "ChessBase"]
[SourceQuality "1"]
[TimeControl "40/5400+30:1800+30"]

1. c4 {[%emt 0:00:10]} Nf6 {[%emt 0:00:20]} 2. Nc3 {[%emt 0:00:11]} d5 {[%emt 0:02:53]} 3. cxd5 {[%emt 0:00:11]} Nxd5 {[%emt 0:00:06]} 4. g3 {[%emt 0:00:29]} g6 {[%emt 0:02:36]} 5. Bg2 {[%emt 0:00:10]} Nxc3 {[%emt 0:01:07]} 6. bxc3 {[%emt 0:00:09]} Bg7 {[%emt 0:00:12]} 7. Nf3 {[%emt 0:01:04]} O-O {[%emt 0:01:25]} 8. O-O {[%emt 0:03:37]} c5 {[%emt 0:02:32]} 9. d4 {[%emt 0:03:49]} cxd4 {[%emt 0:05:30]} 10. cxd4 {[%emt 0:00:23]} Nc6 {[%emt 0:03:30]} 11. Bb2 {[%emt 0:01:50]} Qb6 {[%emt 0:11:46]} 12. Bc3 {[%emt 0:06:46]} Bf5 {[%emt 0:02:29]} 13. e3 {[%emt 0:03:05]} Rfd8 {[%emt 0:07:43]} 14. Qb3 {[%emt 0:02:28]} Qxb3 {[%emt 0:02:03]} 15. axb3 {[%emt 0:00:09]} Be4 {[%emt 0:00:48]} 16. Rfc1 {[%emt 0:01:26]} a6 {[%emt 0:04:29]} 17. Ne1 {[%emt 0:05:14]} Bxg2 {[%emt 0:00:15]} 18. Kxg2 {[%emt 0:00:09]} e5 {[%emt 0:02:20]} 19. dxe5 {[%emt 0:03:04]} Nxe5 {[%emt 0:09:17]} 20. Bd4 {[%emt 0:02:56]} Nc6 {[%emt 0:01:33]} 21. Bxg7 {[%emt 0:02:25]} Kxg7 {[%emt 0:00:28]} 22. Rc3 {[%emt 0:01:38]} Rac8 {[%emt 0:16:20]} 23. Rac1 {[%emt 0:02:02]} Ne7 {[%emt 0:09:31]} 24. Rc7 {[%emt 0:00:34]} Kf8 {[%emt 0:02:01]} 25. Nf3 {[%emt 0:00:31]} h6 {[%emt 0:02:28]} 26. Ne5 {[%emt 0:01:29]} Ke8 {[%emt 0:00:25]} 27. Ng4 {[%emt 0:01:06]} f5 {[%emt 0:02:21]} 28. Nxh6 {[%emt 0:08:42]} Rxc7 {[%emt 0:00:21]} 29. Rxc7 {[%emt 0:00:02]} Rd7 {[%emt 0:01:07]} 30. Rc3 {[%emt 0:00:52]} Kf8 {[%emt 0:00:22]} 31. g4 {[%emt 0:01:27]} Kg7 {[%emt 0:02:15]} 32. g5 {[%emt 0:00:08]} b5 {[%emt 0:00:36]} 33. h4 {[%emt 0:00:40]} Ra7 {[%emt 0:01:21]} 34. Rc5 {[%emt 0:00:19]} Rb7 {[%emt 0:02:38]} 35. h5 {[%emt 0:00:13]} a5 {[%emt 0:00:33]} 36. hxg6 {[%emt 0:00:50]} Kxg6 {[%emt 0:00:09]} 37. f4 {[%emt 0:00:25]} a4 {[%emt 0:01:20]} 38. bxa4 {[%emt 0:00:08]} b4 {[%emt 0:00:26]} 39. a5 {[%emt 0:00:27]} b3 {[%emt 0:00:04]} 40. Rc1 {[%emt 0:00:16]} b2 {[%emt 0:02:02]} 41. Rb1 {[%emt 0:30:08]} Nd5 {[%emt 0:23:01]} 42. a6 {[%emt 0:00:00]} Rb3 {[%emt 0:01:14]} 43. a7 {[%emt 0:00:00]} Nb6 {[%emt 0:00:51]} 44. Kf2 {[%emt 0:00:00]} Na8 {[%emt 0:01:58]} 45. Ke2 {[%emt 0:00:00]} Nc7 {[%emt 0:00:27]} 46. Kd1 {[%emt 0:00:00]} Rb7 {[%emt 0:00:32]} 47. Kd2 {[%emt 0:00:00]} Rxa7 {[%emt 0:01:52]} 48. Rxb2 {[%emt 0:00:00]} Nd5 {[%emt 0:00:01]} 49. Rc2 {[%emt 0:00:00]} Ne7 {[%emt 0:00:59]} 50. Rc5 {[%emt 0:00:00]} Ra2+ {[%emt 0:00:12]} 51. Kd3 {[%emt 0:00:00]} Ra3+ {[%emt 0:00:07]} 52. Ke2 {[%emt 0:00:00]} Ra4 {[%emt 0:01:39]} 53. Kf3 {[%emt 0:00:00]} Ra7 {[%emt 0:00:30]} 54. Re5 {[%emt 0:00:00]} Rd7 {[%emt 0:01:32]} 55. Re6+ {[%emt 0:00:00]} Kh5 {[%emt 0:00:35]} 56. Nf7 {[%emt 0:00:00]} Ng6 {[%emt 0:00:13]} 57. Rxg6 {[%emt 0:00:00]} 1-0

[Event "26th OIBM 2023"]
[Site "Gmund am Tegernsee"]
[Date "2023.11.02"]
[Round "6.23"]
[White "Weber, Ulrich"]
[Black "Renner, Kai"]
[Result "1/2-1/2"]
[ECO "A81"]
[WhiteElo "2349"]
[BlackElo "2103"]
[Annotator "ChessBase"]
[PlyCount "36"]
[EventDate "2023.10.04"]
[EventType "swiss"]
[EventCountry "GER"]
[SourceTitle "playchess.com"]
[Source "ChessBase"]
[SourceQuality "1"]
[TimeControl "40/5400+30:1800+30"]

1. Nf3 {[%emt 0:00:01]} f5 {[%emt 0:00:08]} 2. g3 {[%emt 0:00:05]} Nf6 {[%emt 0:00:09]} 3. Bg2 {[%emt 0:00:02]} g6 {[%emt 0:00:24]} 4. O-O {[%emt 0:00:07]} Bg7 {[%emt 0:00:06]} 5. d4 {[%emt 0:00:02]} O-O {[%emt 0:00:14]} 6. Nbd2 {[%emt 0:00:07]} d6 {[%emt 0:01:56]} 7. Re1 {[%emt 0:00:07]} Nc6 {[%emt 0:01:40]} 8. e4 {[%emt 0:02:35]} e5 {[%emt 0:03:49]} 9. c3 {[%emt 0:04:11]} Nxe4 {[%emt 0:06:19]} 10. Nxe4 {[%emt 0:01:53]} fxe4 {[%emt 0:00:23]} 11. Qb3+ {[%emt 0:04:17]} d5 {[%emt 0:05:00]} 12. Bg5 {[%emt 0:14:02]} Qd7 {[%emt 0:08:42]} 13. Nxe5 {[%emt 0:02:32]} Nxe5 {[%emt 0:03:05]} 14. dxe5 {[%emt 0:00:05]} Qf7 {[%emt 0:06:56]} 15. Bf6 {[%emt 0:35:09]} Bxf6 {[%emt 0:59:09]} 16. exf6 {[%emt 0:00:04]} c6 {[%emt 0:00:00]} 17. c4 {[%emt 0:05:51]} Be6 {[%emt 0:00:00]} 18. cxd5 {[%emt 0:04:46]} Bxd5 {[%emt 0:01:30]} 1/2-1/2